bitfinex-derivatives/quotes_ETHF0:USTF0_20250110
["timestamp","ask_amount","ask_price","bid_price","bid_amount"]
[1736502137958,0.30224,3309.1,3308.6,3.2078]
[1736502137959,1.85618015,3309.5,3308.6,3.2078]
[1736502138157,0.30227,3308.8,3308.7,0.30227]
[1736502138962,0.4405,3308.9,3308.8,0.30226]
[1736502141364,0.441,3309.0,3308.5,0.884]
[1736502141559,0.30224,3309.1,3308.9,0.30226]
[1736502141864,0.30224,3309.1,3309.0,0.4458]
[1736502142358,0.30227,3308.7,3308.5,0.74479]
[1736502142559,0.4367,3308.6,3308.2,0.4458]
[1736502142761,0.30231,3308.3,3308.1,0.76012]
[1736502142962,0.8942,3308.5,3308.0,3.6536]
[1736502143163,0.30232,3308.2,3308.0,3.95593]
[1736502143562,0.4413,3308.1,3308.0,3.95593]
[1736502144162,0.74363,3308.1,3308.0,0.4458]
[1736502144369,0.30234,3308.0,3307.8,0.30235]
[1736502144671,0.4413,3308.1,3307.7,0.9036]
[1736502144672,0.30235,3307.9,3307.7,0.9036]
[1736502144869,0.4436,3307.8,3307.7,0.9036]
[1736502145263,0.4436,3307.8,3307.7,0.4458]
[1736502145458,0.4436,3307.8,3307.6,40.8]
[1736502145767,0.4436,3307.8,3307.6,0.30237]
[1736502145962,0.4436,3307.8,3307.7,0.74817]
[1736502147270,0.4329,3307.9,3307.7,0.4458]
[1736502147464,0.74363,3308.1,3307.8,0.30235]
[1736502147765,0.4413,3308.1,3307.8,0.73465]
[1736502147971,0.74364,3308.1,3307.8,0.73465]
[1736502148270,0.4413,3308.1,3307.8,0.4323]
[1736502148470,0.74363,3308.1,3307.8,0.73465]
[1736502149167,0.4413,3308.1,3307.8,2.28848015]
[1736502149464,3.2078,3308.3,3307.8,2.28848015]
[1736502149668,0.4665,3308.1,3307.8,0.73465]
[1736502149868,0.30234,3308.0,3307.8,0.73465]
[1736502150272,0.76883,3308.1,3307.8,0.73465]
[1736502150769,0.30234,3308.0,3307.7,0.74816]
[1736502151070,0.4372,3307.9,3307.8,0.30236]
[1736502152168,0.4665,3308.1,3307.7,0.4458]
[1736502152375,0.4665,3308.1,3308.0,0.30234]
[1736502152560,3.2078,3308.3,3307.8,1.85618015]
[1736502152763,3.2078,3308.3,3308.1,0.30232]
[1736502152963,3.2078,3308.3,3307.8,1.85618015]
[1736502153163,3.51011,3308.3,3308.1,0.30232]
[1736502153570,0.30231,3308.3,3308.1,0.30232]
[1736502153772,0.30231,3308.4,3308.2,0.30231]
[1736502154569,0.4372,3308.5,3307.9,0.4342]
[1736502154775,0.30231,3308.3,3308.1,0.30232]
[1736502156566,0.4372,3308.5,3307.9,0.4342]
[1736502156773,0.30231,3308.4,3308.2,0.30232]
[1736502158575,4.1137,3308.6,3308.1,1.85618015]
[1736502158776,4.1137,3308.6,3308.5,0.30229]
[1736502159176,0.9059,3308.6,3308.5,0.30229]
[1736502159876,1.20818,3308.6,3308.5,0.30229]
[1736502160182,0.9059,3308.6,3308.5,0.30229]
[1736502161780,1.20818,3308.6,3308.5,0.30229]
[1736502162380,0.9059,3308.6,3308.2,3.6757]
[1736502162681,0.3023,3308.5,3308.4,0.30229]
[1736502163677,0.9059,3308.6,3308.2,3.2078]
[1736502163876,0.9059,3308.6,3308.3,0.3023]
[1736502163877,0.76141,3308.4,3308.3,0.3023]
[1736502164280,0.30232,3308.2,3308.1,0.30232]
[1736502164779,0.4591,3308.4,3308.1,0.30232]
[1736502165380,0.30232,3308.2,3308.1,0.30232]
[1736502166177,0.30232,3308.3,3308.1,0.30232]
[1736502167079,0.4591,3308.4,3308.3,0.30231]
[1736502167279,0.4591,3308.4,3307.8,2.73808015]
[1736502167480,0.7614,3308.4,3308.2,0.30231]
[1736502167882,0.7614,3308.4,3307.8,2.73808015]
[1736502168084,0.7614,3308.4,3308.3,0.30231]
[1736502168477,0.7614,3308.4,3307.8,2.73808015]
[1736502168786,0.7614,3308.4,3308.2,0.30231]
[1736502169176,0.4591,3308.4,3308.2,0.30231]
[1736502169377,0.30231,3308.3,3308.1,0.30232]
[1736502170775,0.4591,3308.4,3307.8,2.73808015]
[1736502170984,0.76141,3308.4,3308.2,0.30232]
[1736502171384,0.30232,3308.3,3307.9,0.30235]
[1736502171584,0.30232,3308.3,3308.1,0.30232]
[1736502172284,0.30232,3308.3,3308.1,0.30233]
[1736502172486,0.30232,3308.3,3308.2,0.30232]
[1736502172686,0.30232,3308.3,3308.1,0.30232]
[1736502174386,0.4591,3308.4,3307.7,3.2078]
[1736502174587,0.30233,3308.1,3307.9,0.30234]
[1736502174979,0.30231,3308.3,3307.9,0.30234]
[1736502175185,0.30233,3308.1,3307.9,0.30234]
[1736502176092,0.30234,3308.0,3307.9,0.30234]
[1736502176987,0.30233,3308.1,3307.9,0.30234]
[1736502177190,0.4591,3308.4,3307.7,3.6537]
[1736502177591,0.30234,3308.0,3307.9,0.30234]
[1736502178484,3.2078,3308.1,3307.6,1.454]
[1736502178684,0.30237,3307.7,3307.6,1.454]
[1736502178891,0.8835,3307.9,3307.2,0.4407]
[1736502179089,0.8835,3307.9,3307.3,0.3024]
[1736502179590,0.3024,3307.4,3307.2,0.4407]
[1736502179785,0.4309,3307.3,3307.2,0.74311]
[1736502180691,3.6387,3307.3,3306.8,0.9087]
[1736502180990,3.2078,3306.9,3306.3,4.72714234]
[1736502181186,0.74936,3306.8,3306.2,4.5858]
[1736502181382,0.73336,3306.7,3306.5,0.30247]
[1736502181584,0.4309,3306.7,3306.5,0.30247]
[1736502181886,0.4309,3306.7,3306.3,40.8]
[1736502181887,0.4309,3306.7,3306.6,0.30247]
[1736502182088,0.4469,3306.8,3306.7,0.30246]
[1736502183595,0.4309,3307.2,3306.7,1.85618015]
[1736502183799,3.6504,3307.4,3307.1,0.30242]
[1736502183983,3.6504,3307.4,3307.3,0.3024]
[1736502184181,0.30241,3307.2,3307.0,0.30243]
[1736502184586,0.461,3307.1,3307.0,0.30243]
[1736502184794,0.76342,3307.1,3306.9,0.30243]
[1736502185094,0.30243,3307.0,3306.8,0.4684]
[1736502185389,0.461,3307.1,3306.6,3.2078]
[1736502185601,0.30246,3306.7,3306.6,3.2078]
[1736502185893,0.30245,3306.8,3306.6,3.51026]
[1736502186891,0.30244,3306.9,3306.7,0.30246]
[1736502187395,0.75315,3306.8,3306.7,0.30246]
[1736502187696,0.4507,3306.8,3306.7,0.30246]
[1736502187896,0.75315,3306.8,3306.7,0.30246]
[1736502188292,0.4507,3306.8,3306.7,0.30246]
[1736502191197,0.75315,3306.8,3306.7,0.30246]
[1736502193599,0.4507,3306.8,3306.7,0.30246]
[1736502193802,0.75315,3306.8,3306.7,0.30246]
[1736502194401,0.4507,3306.8,3306.4,3.23558015]
[1736502194594,0.30246,3306.7,3306.6,0.30246]
[1736502195289,0.4507,3306.8,3305.8,5.82033015]
[1736502195496,0.30249,3306.4,3306.2,0.3025]
[1736502195809,0.3025,3306.3,3306.1,0.75971]
[1736502196003,0.7509,3306.3,3306.1,0.75971]
[1736502196398,0.7509,3306.3,3306.2,0.3025]
[1736502196704,4.1163,3306.6,3306.1,0.4572]
[1736502196898,0.30249,3306.3,3306.2,0.3025]
[1736502198299,0.4484,3306.5,3306.1,0.4572]
[1736502198497,0.30252,3306.0,3305.9,0.4699]
[1736502198693,0.30252,3306.0,3305.9,0.9092]
[1736502199499,0.30252,3306.0,3305.9,0.4393]
[1736502199694,0.30255,3305.7,3305.5,0.73707]
[1736502199901,0.9286,3306.0,3305.6,0.4393]
[1736502200102,3.2078,3306.2,3305.6,2.29548015]
[1736502200300,3.51031,3306.2,3306.0,0.30252]
[1736502200506,0.3025,3306.3,3306.1,0.75361]
[1736502200707,1.23399,3306.4,3306.2,0.3025]
[1736502201396,0.30249,3306.3,3306.2,0.737]
[1736502201704,0.9315,3306.4,3306.2,0.4345]
[1736502201902,0.4735,3306.6,3306.2,5.49848015]
[1736502202107,4.4268,3307.4,3306.5,1.85618015]
[1736502202306,0.30243,3307.0,3306.8,0.30244]
[1736502202607,0.30244,3307.0,3306.8,0.30244]
[1736502202804,0.30244,3307.0,3306.6,0.4511]
[1736502202805,0.4355,3307.3,3306.6,3.6589]
[1736502203005,0.30242,3307.2,3307.0,0.30242]
[1736502203201,3.2078,3307.4,3307.1,0.4511]
[1736502203411,0.30241,3307.2,3307.1,0.4511]
[1736502203609,3.2078,3307.4,3307.1,0.4511]
[1736502203805,3.2078,3307.4,3307.1,0.75351]
[1736502204102,0.30241,3307.2,3307.1,0.75351]
[1736502204702,0.30241,3307.3,3307.1,0.75351]
[1736502204901,0.30241,3307.2,3307.1,0.4511]
[1736502205906,0.30241,3307.2,3307.0,0.30242]
[1736502206103,0.4619,3307.3,3307.0,0.30242]
[1736502206311,0.30242,3307.2,3307.0,0.30242]
[1736502207502,0.4619,3307.3,3307.2,0.30241]
[1736502207503,0.76431,3307.3,3307.2,0.30241]
[1736502207710,3.5102,3307.4,3307.2,0.30241]
[1736502208105,3.5102,3307.4,3307.3,0.4591]
[1736502208106,3.2078,3307.4,3307.3,0.4591]
[1736502208302,3.2078,3307.4,3307.3,0.7615]
[1736502210909,0.73486,3307.8,3307.3,0.4591]
[1736502211107,0.4325,3307.8,3307.7,0.30237]
[1736502211510,0.73486,3307.8,3307.6,0.30237]
[1736502213610,3.2078,3308.0,3307.4,0.471]
[1736502213816,0.30236,3307.8,3307.6,0.30237]
[1736502216220,0.30237,3307.7,3307.5,0.30238]
[1736502216726,0.4423,3307.9,3307.3,0.4591]
[1736502216917,0.30239,3307.5,3307.3,0.7615]
[1736502217317,0.30238,3307.6,3307.4,0.30239]
[1736502217623,0.4423,3307.9,3307.3,0.4591]
[1736502217820,0.30239,3307.5,3307.3,0.4591]
[1736502218013,0.30239,3307.5,3307.4,0.30239]
[1736502218219,0.30237,3307.7,3307.5,0.30238]
[1736502218421,0.4423,3307.9,3307.4,1.85618015]
[1736502218820,0.74465,3307.9,3307.8,0.30236]
[1736502219022,0.4423,3307.9,3307.8,0.30236]
[1736502219220,3.2078,3308.0,3307.4,5.49968015]
[1736502219523,0.30235,3307.9,3307.8,0.30235]
[1736502219823,0.30235,3307.9,3307.7,0.30236]
[1736502220020,0.30235,3307.9,3307.8,0.30236]
[1736502220728,3.2078,3308.0,3307.9,0.30235]
[1736502222837,3.2078,3308.0,3307.8,0.8991]
[1736502223135,3.51014,3308.0,3307.8,1.20145]
[1736502223532,3.2078,3308.0,3307.9,0.30235]
[1736502224936,3.2078,3308.0,3307.8,1.20145]
[1736502225136,0.4751,3307.9,3307.8,0.30235]
[1736502225338,1.25425,3307.9,3307.8,0.30235]
[1736502225729,0.9519,3307.9,3307.8,0.30235]
[1736502226835,0.4751,3307.9,3307.8,0.30235]
[1736502227139,3.2078,3308.0,3307.9,0.30235]
[1736502227324,0.74152,3308.2,3307.7,1.85618015]
[1736502227325,0.4392,3308.2,3307.7,1.85618015]
[1736502227835,0.4392,3308.2,3307.5,0.8833]
[1736502228038,0.30234,3308.0,3307.8,0.30235]
[1736502228733,0.4392,3308.2,3307.5,0.8833]
[1736502228928,0.4775,3307.9,3307.6,0.30237]
[1736502229133,0.4775,3307.9,3307.4,3.51018]
[1736502229134,0.30238,3307.6,3307.4,3.51018]
[1736502229433,0.30238,3307.6,3307.4,3.51019]
[1736502229638,0.4677,3307.5,3307.4,3.51019]
[1736502229837,0.77008,3307.5,3307.4,3.2078]
[1736502234137,0.77008,3307.5,3307.4,3.51019]
[1736502234339,0.77008,3307.5,3307.4,3.2078]
[1736502237143,0.77008,3307.5,3307.4,3.51019]
[1736502237842,0.77008,3307.5,3307.4,3.2078]
[1736502238936,0.4677,3307.5,3307.0,40.8]
[1736502239136,0.30242,3307.2,3307.1,0.30241]
[1736502240444,0.30242,3307.1,3307.0,41.10242]
[1736502240645,0.30242,3307.1,3307.0,40.8]
[1736502240935,0.30241,3307.2,3306.9,3.98803]
[1736502241143,0.4314,3307.0,3306.9,3.98803]
[1736502244639,0.4485,3307.3,3306.9,3.6856]
[1736502244850,1.22481,3307.3,3307.2,0.30241]
[1736502245648,3.2078,3307.6,3307.1,1.85618015]
[1736502245845,0.30239,3307.5,3307.4,0.30239]
[1736502246047,0.77539,3307.5,3307.4,0.30239]
[1736502246754,0.3024,3307.4,3307.3,0.3024]
[1736502247251,0.777,3307.4,3307.3,0.3024]
[1736502248057,0.777,3307.4,3307.2,0.777]
[1736502248353,0.777,3307.4,3307.3,0.3024]
[1736502249359,0.4746,3307.4,3307.3,0.3024]
[1736502249759,0.77699,3307.4,3307.3,0.3024]
[1736502250556,0.77699,3307.4,3306.9,3.6856]
[1736502250557,0.4746,3307.4,3306.9,3.6856]
[1736502250852,0.30242,3307.2,3307.0,0.30242]
[1736502251258,0.30242,3307.2,3307.1,0.30242]
[1736502251455,0.30243,3307.1,3307.0,0.30242]
[1736502251952,0.30243,3307.1,3306.9,3.6856]
[1736502252257,0.4343,3307.0,3306.9,3.98803]
[1736502252851,0.77301,3307.3,3307.1,0.30242]
[1736502253055,0.4343,3307.2,3307.1,0.30242]
[1736502254056,0.73672,3307.2,3307.1,0.30242]
[1736502254756,0.4343,3307.2,3307.1,0.30242]
[1736502255859,0.4343,3307.2,3306.9,3.6856]
[1736502256066,0.30243,3307.0,3306.9,3.2078]
[1736502256762,0.30247,3306.6,3306.5,0.75037]
[1736502256958,0.30247,3306.5,3306.4,0.46]
[1736502257153,0.444,3306.9,3306.4,0.46]
[1736502257355,0.30246,3306.7,3306.5,0.30247]
[1736502257658,0.4596,3306.8,3306.4,41.26]
[1736502257856,0.4464,3306.6,3306.4,0.76248]
[1736502258056,0.74887,3306.6,3306.4,0.76248]
[1736502258460,0.30247,3306.5,3306.4,0.76248]
[1736502259056,0.4464,3306.6,3306.4,0.76248]
[1736502259256,0.74887,3306.6,3306.4,0.76248]
[1736502260259,0.74887,3306.6,3306.5,0.30247]
[1736502260459,0.4464,3306.6,3306.5,0.30247]
[1736502260659,0.74887,3306.6,3306.5,0.30247]
[1736502261057,0.74887,3306.6,3306.4,0.46]
[1736502261564,0.74887,3306.6,3306.5,0.30247]
[1736502262457,0.30247,3306.5,3306.4,0.76248]
[1736502262660,0.30247,3306.5,3306.3,40.8]
[1736502262860,0.3025,3306.2,3305.9,3.51032]
[1736502263056,0.77392,3306.1,3306.0,0.30252]
[1736502263259,0.30252,3306.0,3305.9,3.96373]
[1736502263659,0.9189,3306.1,3305.9,3.96373]
[1736502264059,1.22142,3306.1,3305.9,3.96373]
[1736502265466,0.9189,3306.1,3305.9,3.6612]
[1736502265668,0.9189,3306.1,3306.0,0.30252]
[1736502266063,0.30248,3306.4,3306.2,0.3025]
[1736502266368,0.30251,3306.2,3306.0,0.30252]
[1736502266668,0.4588,3306.3,3305.9,3.6612]
[1736502266868,0.30252,3306.0,3305.9,3.2078]
[1736502268164,3.2078,3306.1,3305.7,40.8]
[1736502268364,0.30257,3305.5,3305.3,0.75368]
[1736502268565,2.77198015,3305.9,3305.3,0.4511]
[1736502268767,0.30255,3305.7,3305.5,0.30256]
[1736502269263,0.30255,3305.7,3305.4,40.8]
[1736502269470,0.30257,3305.5,3305.4,40.8]
[1736502269764,0.30257,3305.6,3305.4,41.10257]
[1736502270559,0.30256,3305.6,3305.4,41.10257]
[1736502270764,0.30256,3305.6,3305.4,0.30257]
[1736502271762,0.30258,3305.4,3305.3,0.75368]
[1736502271963,0.30257,3305.5,3305.4,0.30258]
[1736502272770,0.30258,3305.4,3305.3,0.75368]
[1736502272970,0.30259,3305.3,3305.2,0.30259]
[1736502273268,1.21549,3305.3,3305.2,0.30259]
[1736502273469,0.9129,3305.3,3305.2,0.30259]
[1736502273771,0.30259,3305.2,3305.0,0.73691]
[1736502274366,2.76908015,3305.3,3304.9,40.8]
[1736502274568,0.30262,3304.9,3304.8,0.9156]
[1736502275472,0.30262,3304.9,3304.1,3.2078]
[1736502275473,3.2078,3304.9,3304.1,3.2078]
[1736502275672,1.3849,3304.8,3304.2,0.9234]
[1736502275975,0.30264,3304.7,3304.5,0.30265]
[1736502276170,0.30264,3304.7,3304.5,0.30266]
[1736502276470,0.30264,3304.7,3304.2,0.9234]
[1736502276471,0.30264,3304.7,3304.4,0.30266]
[1736502276762,1.3849,3304.8,3304.4,0.30266]
[1736502277162,0.30264,3304.7,3304.4,0.30266]
[1736502277363,1.3849,3304.8,3304.4,0.30266]
[1736502277563,0.30265,3304.6,3304.4,0.30266]
[1736502277759,1.85618015,3304.7,3304.2,0.9234]
[1736502277964,0.30267,3304.4,3304.2,0.9234]
[1736502278163,1.85618015,3304.7,3304.2,0.9234]
[1736502278370,0.30268,3304.3,3304.1,3.2078]
[1736502278573,0.30268,3304.3,3304.1,3.51049]
[1736502278770,0.30269,3304.2,3304.1,3.2078]
[1736502278974,0.30269,3304.1,3303.9,0.4746]
[1736502279167,0.469,3304.1,3303.9,0.4746]
[1736502279476,0.7717,3304.1,3303.9,0.4746]
[1736502279669,0.3027,3304.0,3303.9,0.4746]
[1736502279869,3.2078,3304.3,3303.7,0.4373]
[1736502280169,3.2078,3304.3,3303.9,0.45]
[1736502280468,0.3027,3304.0,3303.9,0.45]
[1736502281279,3.2078,3304.3,3304.2,0.30269]
[1736502281471,3.51048,3304.3,3304.1,0.30269]
[1736502282372,3.2078,3304.3,3304.1,0.30269]
[1736502282973,0.30269,3304.2,3304.1,0.30269]
[1736502283176,0.30269,3304.2,3303.9,0.45]
[1736502283367,3.2078,3304.3,3304.1,0.30269]
[1736502283566,3.2078,3304.3,3303.9,0.45]
[1736502283769,3.2078,3304.3,3304.2,0.30269]
[1736502284274,3.51048,3304.3,3303.9,0.45]
[1736502284470,3.51048,3304.3,3304.1,0.30269]
[1736502285175,0.3027,3304.1,3304.0,0.3027]
[1736502285378,0.30269,3304.2,3304.0,0.3027]
[1736502285968,0.3027,3304.1,3303.9,0.75271]
[1736502286577,0.4478,3304.0,3303.9,0.75271]
[1736502287272,0.7505,3304.0,3303.9,0.75271]
[1736502287480,0.4478,3304.0,3303.9,0.75271]
[1736502288078,3.2078,3304.3,3303.9,0.45]
[1736502288274,0.30269,3304.2,3304.1,0.30269]
[1736502291980,0.4478,3304.4,3303.9,0.45]
[1736502292184,5.51178015,3304.4,3303.7,0.4373]
[1736502292580,1.85618015,3304.1,3303.6,0.4504]
[1736502292890,0.30273,3303.7,3303.6,0.4504]
[1736502293592,0.8898,3303.9,3303.6,0.4504]
[1736502293783,0.30273,3303.8,3303.7,0.30273]
[1736502293983,0.30273,3303.7,3303.6,0.75314]
[1736502295189,0.30273,3303.7,3303.6,0.4504]
[1736502295379,0.30274,3303.6,3303.5,3.51055]
[1736502295786,0.30274,3303.6,3303.5,3.2078]
[1736502296088,0.30274,3303.6,3303.5,3.51055]
[1736502296392,0.30274,3303.6,3303.5,3.2078]
[1736502298992,0.30277,3303.3,3303.2,0.77167]
[1736502299787,0.30277,3303.3,3303.2,0.4689]
[1736502300091,1.85618015,3303.5,3303.1,0.30278]
[1736502300092,0.30279,3303.2,3303.1,0.30278]
[1736502300287,0.30279,3303.1,3303.0,0.76499]
[1736502300593,0.30279,3303.1,3303.0,0.765]
[1736502301600,0.30279,3303.1,3303.0,0.3028]
[1736502301900,0.30284,3302.5,3302.4,0.4729]
[1736502302797,0.467,3302.6,3302.5,0.30284]
[1736502303095,3.2078,3302.8,3302.7,0.30282]
[1736502303286,0.467,3303.1,3302.4,5.53688015]
[1736502303487,0.467,3303.1,3303.0,0.3028]
[1736502303892,0.467,3303.1,3302.4,5.53688015]
[1736502304092,0.467,3303.1,3302.4,3.6807]
[1736502304292,0.30283,3302.6,3302.4,0.77574]
[1736502304797,1.85618015,3302.9,3302.4,0.4729]
[1736502305097,0.30283,3302.7,3302.5,0.30283]
[1736502305286,0.30283,3302.7,3302.5,0.30284]
[1736502306094,0.30282,3302.8,3302.6,0.30283]
[1736502306399,4.0861,3303.0,3302.2,0.8981]
[1736502306593,1.1811,3303.0,3302.8,0.30281]
[1736502306798,1.1811,3303.0,3302.4,3.2078]
[1736502306799,4.0861,3303.0,3302.4,3.2078]
[1736502306990,0.30282,3302.8,3302.6,0.30283]
[1736502307191,0.30281,3302.9,3302.5,0.30284]
[1736502307499,0.8783,3303.0,3302.4,3.2078]
[1736502307891,0.30281,3302.9,3302.7,0.30282]
[1736502308087,0.8783,3303.0,3302.5,40.8]
[1736502308293,3.97759,3303.1,3303.0,0.3028]
[1736502308796,3.6748,3303.1,3302.5,40.8]
[1736502309198,3.6748,3303.1,3302.8,0.30281]
[1736502309199,0.30281,3302.9,3302.8,0.30281]
[1736502309398,0.3028,3303.0,3302.8,0.30281]
[1736502309594,0.30282,3302.8,3302.6,0.74953]
[1736502309997,0.4421,3302.9,3302.6,0.4467]
[1736502310205,0.30282,3302.8,3302.7,0.30282]
[1736502310409,0.30285,3302.5,3302.4,0.30285]
[1736502310596,3.2078,3302.6,3302.2,0.9102]
[1736502310796,0.4748,3302.7,3302.3,0.30285]
[1736502310797,0.30284,3302.5,3302.3,0.30285]
[1736502311502,0.30285,3302.4,3302.3,0.30285]
[1736502312101,0.4576,3302.6,3302.2,0.9102]
[1736502312298,0.30286,3302.4,3302.3,0.30286]
[1736502312605,0.30285,3302.4,3302.3,0.30285]
[1736502313101,0.4576,3302.6,3302.2,1.21306]
[1736502313301,0.30286,3302.4,3302.2,1.21306]
[1736502314007,0.30286,3302.4,3302.2,0.9102]
[1736502314207,0.30286,3302.4,3302.2,1.21306]
[1736502315106,0.4576,3302.6,3302.2,1.21306]
[1736502315303,0.4576,3302.6,3302.0,3.2078]
[1736502315509,0.30287,3302.2,3302.0,3.51068]
[1736502315805,0.30288,3302.1,3302.0,3.2078]
[1736502316007,1.66798,3302.1,3302.0,3.2078]
[1736502316208,1.3651,3302.1,3301.2,3.2078]
[1736502316403,0.3029,3301.9,3301.7,0.75911]
[1736502316621,0.3029,3301.9,3301.8,0.4634]
[1736502316800,0.3029,3301.9,3301.8,0.76631]
[1736502317403,0.30183425,3301.9,3301.8,0.76631]
[1736502317705,1.3651,3302.1,3301.8,0.4634]
[1736502318108,1.3651,3302.1,3301.8,0.7663]
[1736502318310,0.3029,3302.0,3301.8,0.7663]
[1736502318613,0.3029,3301.9,3301.8,0.7663]
[1736502319104,0.3029,3301.9,3301.8,0.4634]
[1736502319406,0.3029,3301.9,3301.3,0.4547]
[1736502319407,1.3651,3302.1,3301.4,0.4576]
[1736502319705,0.30291,3301.8,3301.6,0.30292]
[1736502319910,1.3651,3302.1,3301.4,0.4576]
[1736502320307,0.30291,3301.8,3301.6,0.30292]
[1736502320605,1.3651,3302.1,3301.2,3.2078]
[1736502320606,3.2078,3301.7,3301.2,3.2078]
[1736502320910,1.85618015,3301.6,3301.2,3.2078]
[1736502321108,0.73404,3301.5,3301.3,0.30295]
[1736502321302,1.20554,3301.5,3301.3,0.30295]
[1736502322106,1.20554,3301.5,3301.2,3.2078]
[1736502322305,1.20554,3301.5,3301.4,0.30294]
[1736502322615,1.20554,3301.5,3301.2,3.2078]
[1736502322815,1.20554,3301.5,3301.3,0.30295]
[1736502323110,1.20554,3301.5,3301.4,0.30294]
[1736502323310,1.0603,3301.4,3300.7,0.30301]
[1736502323506,0.303,3300.8,3300.6,0.74931]
[1736502323713,5.06398015,3301.3,3300.7,40.8]
[1736502324013,0.303,3300.8,3300.7,40.8]
[1736502324414,0.303,3300.8,3300.6,0.74931]
[1736502324711,1.3766,3300.9,3300.6,0.74931]
[1736502324712,1.3766,3300.9,3300.6,0.4463]
[1736502324906,0.30302,3300.6,3300.5,40.8]
[1736502325314,0.30302,3300.5,3300.4,3.2078]
[1736502326405,4.8874,3300.9,3300.5,0.30302]
[1736502326707,0.30301,3300.7,3300.5,0.30302]
[1736502326917,0.30302,3300.6,3300.5,0.30302]
[1736502327210,4.5844,3300.9,3300.5,0.30302]
[1736502327410,4.5844,3300.9,3300.4,3.2078]
[1736502327610,3.2078,3300.9,3300.8,0.303]
[1736502328113,1.63155,3301.4,3301.2,0.30296]
[1736502328309,1.3286,3301.4,3301.3,40.8]
[1736502328516,1.63154,3301.4,3301.3,40.8]
[1736502328713,1.3286,3301.4,3300.8,3.2078]
[1736502328917,0.4567,3301.4,3301.3,0.30295]
[1736502329320,0.4567,3301.4,3300.9,40.8]
[1736502329321,3.2078,3301.7,3300.9,40.8]
[1736502329517,0.77782,3301.6,3301.5,0.30293]
[1736502329716,0.4749,3301.6,3301.5,0.30293]
[1736502329920,0.4388,3301.8,3301.2,5.06398015]
[1736502330113,3.2078,3302.1,3301.3,0.4701]
[1736502330419,3.6414,3302.1,3301.7,0.30291]
[1736502330615,3.6414,3302.1,3302.0,0.30289]
[1736502330916,0.78736535,3302.4,3302.3,0.30286]
[1736502331716,3.2078,3302.5,3302.4,0.30285]
[1736502334514,0.3028,3303.0,3302.7,0.30282]
[1736502334914,0.30281,3302.9,3302.7,0.30282]
[1736502335222,3.6414,3303.2,3302.7,0.30282]
[1736502335517,0.30285,3302.4,3302.2,3.51066]
[1736502335717,0.30286,3302.3,3302.2,3.2078]
[1736502336519,0.9133,3302.7,3302.2,3.2078]
[1736502336721,0.9133,3302.7,3302.2,3.51067]
[1736502336918,0.9133,3302.7,3302.2,3.2078]
[1736502337119,0.30286,3302.3,3302.2,3.2078]
[1736502337326,0.30284,3302.5,3302.3,0.30286]
[1736502337820,0.30284,3302.6,3302.4,0.30285]
[1736502338126,0.4636,3302.7,3302.6,0.30283]
[1736502338726,0.4636,3302.7,3302.2,3.2078]
[1736502338918,0.4636,3302.7,3302.5,0.30284]
[1736502339424,3.51062,3302.8,3302.2,5.06398015]
[1736502339425,3.2078,3302.8,3302.2,5.06398015]
[1736502339616,1.221,3303.1,3303.0,0.3028]
[1736502341920,0.4336,3303.2,3303.1,0.30279]
[1736502342227,3.6837,3303.4,3302.7,0.8864]
[1736502342431,3.98647,3303.4,3303.2,0.30277]
[1736502342723,0.4643,3303.6,3303.2,3.2078]
[1736502342926,0.4643,3303.6,3303.5,0.30275]
[1736502343314,0.4643,3303.6,3303.4,0.30275]
[1736502343518,0.76704,3303.6,3303.4,0.30275]
[1736502343718,0.4643,3303.6,3303.2,3.2078]
[1736502344222,0.4643,3303.6,3303.5,0.30275]
[1736502347929,0.4643,3303.6,3303.2,3.2078]
[1736502348429,0.4643,3303.6,3303.5,0.30275]
[1736502348628,0.30275,3303.5,3303.3,0.30276]
[1736502349228,0.30277,3303.3,3303.2,3.2078]
[1736502349625,0.30278,3303.2,3302.9,0.3028]
[1736502349828,0.30279,3303.1,3302.9,0.3028]
[1736502350324,0.3028,3303.0,3302.7,0.30282]
[1736502350632,1.85618015,3303.1,3302.6,3.2078]
[1736502350819,0.4387,3302.9,3302.6,3.2078]
[1736502351021,0.30279,3303.1,3302.9,0.3028]
[1736502351727,0.3028,3303.0,3302.8,0.30281]
[1736502351928,0.3028,3303.0,3302.9,0.3028]
[1736502352727,0.4492,3303.2,3302.4,0.9136]
[1736502353028,0.75198,3303.2,3303.0,0.30279]
[1736502353222,0.30279,3303.1,3303.0,0.30279]
[1736502354025,0.4492,3303.2,3302.4,0.9136]
[1736502354231,0.3028,3303.0,3302.8,0.30281]
[1736502354431,0.3028,3303.0,3302.9,0.3028]
[1736502355331,0.3028,3303.0,3302.8,0.30281]
[1736502355634,0.4492,3303.2,3302.4,0.9136]
[1736502355834,0.30281,3302.9,3302.8,0.30281]
[1736502356232,0.4492,3303.2,3302.4,0.9136]
[1736502356434,0.30282,3302.7,3302.6,0.30283]
[1736502358125,0.30282,3302.8,3302.7,0.30282]
[1736502358327,0.30281,3302.9,3302.8,0.30281]
[1736502358727,3.657,3303.2,3302.4,0.9136]
[1736502359027,0.30282,3302.8,3302.7,0.30282]
[1736502359633,3.657,3303.2,3302.4,0.9136]
[1736502360030,0.30284,3302.6,3302.5,0.30284]